Cogmind - Beta 15 @@@ ROGUE MODE // 2025.06.04 @ 18:23:15 Player: KaiserChief Result: Destroyed by S-27 Virus with Autogun Performance ------------- Evolutions (5) 2500 Regions Visited (9) 1800 Robots Destroyed (25) 125 Value Destroyed (729) 729 Prototype IDs (24) 480 Alien Tech Used (0) 0 Bonus (3178) 3178 TOTAL SCORE: 8812 Bonus ------- High Alert Combat Kills 306 Follower Combat Kills 1641 Entered Garrisons 200 Used RIF Installer 500 Registered with UFD 300 Met Optimus in HQ 500 Friendly Fire -269 Cogmind --------- Core Integrity 0/1000 Matter 224/300 Energy 100/100 System Corruption 10% Temperature Cool (67) Movement Flying (35) Location -5/Upper Caves Parts ------- > --- POWER (2) -------- (None) > --- PROPULSION (4) --- Gyrokinetic Inverter Cooled Nuclear Pulse Thruster > --- UTILITY (8) ------ Advanced Targeting Computer A0-MCA's Component Scanner > --- WEAPON (3) ------- (None) > --- INVENTORY (5) ---- Advanced Datajack Peak State ------------ > --- POWER ------------ Antimatter Reactor Antimatter Reactor > --- PROPULSION ------- Overtuned Titanium Leg Overtuned Titanium Leg Enhanced Biometal Leg Improved Gravmag System > --- UTILITY ---------- Scrap Suit Advanced Sensor Array Improved Signal Interpreter Seismic Detector Improved Propulsion Shielding Relay Coupler [Grunt] A0-MCA's Component Scanner > --- WEAPON ----------- Improved Lightning Gun Overtuned Pulse Rifle Beamcaster > --- INVENTORY -------- Antimatter Reactor Hardened Medium Armor Plating Relay Coupler [NC] [Rating: 81] Favorites ----------- Power Antimatter Reactor Engine Subdweller Power Source Reactor Antimatter Reactor Propulsion Overtuned Titanium Leg Leg Overtuned Titanium Leg Wheel Compact Wheel Hover Unit Improved Gravmag System Flight Unit Flight Unit Utility Seismic Detector Device Seismic Detector Processor A0-MCA's Component Scanner Hackware Relay Coupler [Grunt] Protection Improved Propulsion Shielding Weapon Medium Laser Energy Gun Medium Laser Ballistic Cannon Hypervelocity Gauss Cannon Special Weapon Mining Laser Special Melee Weapon Advanced Datajack Build | -11 -10 -10 -9 -6 -6 -6 -6 -5 -5 ------- Run | Yrd Mat Sub Scr Fac Was Fac Gar Fac Upp Slots Evolved 10 | . . . . 8 . . . 2 . Power 1 | . . . . 1 . . . . . Propulsion 2 | . . . . 2 . . . . . Utility 6 | . . . . 5 . . . 1 . Weapon 1 | . . . . . . . . 1 . Parts Attached 41 | 7 4 1 7 6 5 . . 11 . Power 7 | 1 . 1 2 . 3 . . . . Engine 4 | 1 . 1 2 . . . . . . Core . | . . . . . . . . . . Reactor 3 | . . . . . 3 . . . . Propulsion 13 | 2 3 . 2 1 1 . . 4 . Treads . | . . . . . . . . . . Leg 3 | . . . 2 . 1 . . . . Wheel 2 | 2 . . . . . . . . . Hover 4 | . . . . 1 . . . 3 . Flight 4 | . 3 . . . . . . 1 . Utility 13 | 2 1 . 2 3 1 . . 4 . Device 6 | 2 1 . 1 2 . . . . . Storage . | . . . . . . . . . . Processor 3 | . . . 1 1 . . . 1 . Hackware 2 | . . . . . . . . 2 . Protection 2 | . . . . . 1 . . 1 . Artifact . | . . . . . . . . . . Weapon 8 | 2 . . 1 2 . . . 3 . Energy Gun 5 | 2 . . 1 1 . . . 1 . Energy Cannon . | . . . . . . . . . . Ballistic Gun . | . . . . . . . . . . Ballistic Cannon 1 | . . . . . . . . 1 . Launcher . | . . . . . . . . . . Special Weapon 1 | . . . . 1 . . . . . Impact Weapon . | . . . . . . . . . . Slashing Weapon . | . . . . . . . . . . Piercing Weapon . | . . . . . . . . . . Special Melee Weapon 1 | . . . . . . . . 1 . Unidentified Prototypes . | . . . . . . . . . . Parts Lost 24 | . . . 3 . . . . 21 . Power 5 | . . . 1 . . . . 4 . Propulsion 5 | . . . . . . . . 5 . Utility 9 | . . . 1 . . . . 8 . Weapon 5 | . . . 1 . . . . 4 . Highest Loss Streak 9 | . . . 3 . . . . 9 . To Critical Strikes . | . . . . . . . . . . Average Backups 4 | 2 4 5 4 2 4 5 5 2 1 Power . | . . . . . 1 1 1 . . Propulsion . | . 1 1 . . . . . . . Utility 1 | . 1 2 2 . 1 3 3 1 . Weapon 1 | 1 2 2 1 1 1 1 1 . . Tool/Special . | . . . . . . . . . . Unused Backups 9 | . 1 1 2 . 2 . 2 . 1 Power 1 | . . . . . 1 . . . . Propulsion 1 | . . . 1 . . . . . . Utility 5 | . 1 1 . . 1 . 2 . . Weapon 1 | . . . 1 . . . . . . Tool/Special 1 | . . . . . . . . . 1 Average Slot Usage (%) 89 | . 100 100 99 74 91 93 93 74 23 Engine 6 | . 14 14 13 6 2 . . 2 . Reactor 4 | . . . . . 10 13 13 6 . Leg 10 | . . . 4 13 19 20 20 12 . Hover 3 | . . . . 5 6 6 6 5 5 Flight 9 | . 3 28 23 . . . . . 5 Device 21 | . 28 28 27 23 20 20 20 10 . Processor 6 | . . . . 10 13 13 13 8 11 Hackware 1 | . . . . . . . . 7 . Protection 2 | . . . . . 4 6 6 4 . Energy Gun 18 | . 28 28 27 12 13 13 13 9 . Peak Build Rating 81 | 9 9 8 25 51 74 74 74 81 25 Average Rating 41 | 4 7 7 9 47 71 74 73 64 25 On Entrance 34 | . 9 7 8 25 50 74 74 73 25 Naked Turns . | . . . . . . . . . . Heaviest Build 53 | 11 11 11 16 21 48 48 48 53 . Greatest Support 68 | 26 26 8 38 38 68 68 68 68 6 Greatest Overweight (x) 5 | 1 2 1 5 . . . . 3 . Average Overweight (x) . | . . 1 . . . . . . . Largest Inventory Capacity 5 | 5 5 5 5 5 5 5 5 5 5 Average Capacity 5 | 5 5 5 5 5 5 5 5 5 5 Most Carried 5 | 5 5 5 5 4 5 5 5 5 1 Average Carried 4 | 2 4 5 4 2 4 5 4 2 1 Final Capacity 5 | 5 5 5 5 5 5 5 5 5 5 Final Carried 5 | 3 5 5 4 4 5 5 5 1 1 Class Distribution -------------------- 52% | Scavenger-Scrapper 39% | Scavenger-Mutant 8% | Mutant Dominant Class ---------------- Mutant | -10/Materials Scavenger-Mutant | -10/Subcaves Scavenger-Mutant | -9/Scraptown Scavenger-Scrapper | -6/Factory Scavenger-Scrapper | -6/Waste Scavenger-Scrapper | -6/Factory Scavenger-Scrapper | -6/Garrison Scavenger-Scrapper | -5/Factory Mutant | -5/Upper Caves Resources | -11 -10 -10 -9 -6 -6 -6 -6 -5 -5 ----------- Run | Yrd Mat Sub Scr Fac Was Fac Gar Fac Upp Matter Collected 554 | 255 25 50 70 . 120 . 27 7 . Remotely . | . . . . . . . . . . Salvage Created 881 | 212 . . 172 . 29 . 79 389 . Parts 40 | 11 . . 3 . 1 . 1 24 . Haulers Intercepted . | . . . . . . . . . . Recyclers Shooed . | . . . . . . . . . . Parts Field Recycled . | . . . . . . . . . . Retrieved Matter . | . . . . . . . . . . Parts Self-Destructed 4 | . . 4 . . . . . . . Prevented . | . . . . . . . . . . Kills | -11 -10 -10 -9 -6 -6 -6 -6 -5 -5 ------- Run | Yrd Mat Sub Scr Fac Was Fac Gar Fac Upp Combat Hostiles Destroyed 11 | . . . 3 . . . 2 6 . Guns 11 | . . . 3 . . . 2 6 . Classes Destroyed 12 | 2 . . 2 . 1 . 1 6 . Worker 2 | . . . . . . . . 2 . Builder 2 | . . . . . . . . 2 . Tunneler 5 | 5 . . . . . . . . . Recycler 2 | 1 . . . . . . . 1 . Mechanic 1 | . . . . . . . . 1 . Swarmer 2 | . . . . . . . . 2 . Grunt 2 | . . . . . . . 2 . . Hunter 2 | . . . . . . . . 2 . Programmer 1 | . . . . . . . . 1 . Guru 2 | . . . 2 . . . . . . Scrapper 1 | . . . 1 . . . . . . Surgeon 1 | . . . . . . . . 1 . Wasp 1 | . . . . . 1 . . . . Martyr 1 | . . . . . . . . 1 . Best Kill Streak 6 | 4 . . 2 . . . 1 6 . Combat Bots Only 4 | . . . 2 . . . 1 4 . Max Kills in Single Turn 2 | 1 . . 1 . 1 . 1 2 . Gunslinging . | . . . . . . . . . . Exploded . | . . . . . . . . . . Melee . | . . . . . . . . . . Uniques/NPCs Destroyed . | . . . . . . . . . . Combat | -11 -10 -10 -9 -6 -6 -6 -6 -5 -5 -------- Run | Yrd Mat Sub Scr Fac Was Fac Gar Fac Upp Hostile Shots Fired 249 | . 1 7 32 . . . 16 183 10 Missed 92 | . . 1 10 . . . 5 72 4 Hits 157 | . 1 6 22 . . . 11 111 6 Melee 5 | . . . 1 . . . . 4 . Projectile 152 | . 1 6 21 . . . 11 107 6 AOE 2 | . . . . . . . . 2 . Critical Strikes 9 | . . . 5 . . . 1 3 . Damage Taken 3868 | . 7 134 475 . . . 345 2814 93 Core 1241 | . . 67 144 . . . 20 917 93 Absorbed by Shields . | . . . . . . . . . . Redirected to Shielding 106 | . . . . . . . 20 86 . Regen/Repaired (Parts) 344 | . . . . 14 138 . 143 49 . Core Remaining (%) 70 | 100 . . 15 . . . 97 . . Volleys Fired 84 | 8 . . 11 5 3 1 27 29 . Largest 3 | 2 . . 2 2 2 2 2 3 . Hottest 215 | 100 . . 130 180 140 140 140 215 . Shots Fired 131 | 16 . . 20 8 6 2 40 39 . Gun 125 | 16 . . 20 4 6 2 40 37 . Cannon 2 | . . . . . . . . 2 . Launcher . | . . . . . . . . . . Special 4 | . . . . 4 . . . . . Kinetic 2 | . . . . . . . . 2 . Thermal 82 | 16 . . 20 7 3 1 13 22 . Explosive . | . . . . . . . . . . Electromagnetic 47 | . . . . 1 3 1 27 15 . Robot Hit Streak 10 | 5 . . 10 . 1 . 5 9 . Robot Miss Streak 8 | 2 . . 4 . 1 2 2 8 . Penetration Max . | . . . . . . . . . . Secondary Targets 2 | . . . 1 . . . . 1 . Max Gunslinging Chain 1 | . . . 1 . . . . 1 . Shots Hit Robots 69 | 9 . . 14 . 3 . 16 27 . Core Hits 47 | 7 . . 11 . 1 . 8 20 . Critical Kills . | . . . . . . . . . . Critical Parts Destroyed . | . . . . . . . . . . Critical Strikes 4 | . . . 1 . . . 1 2 . Burn 4 | . . . 1 . . . 1 2 . Melee Attacks 7 | . . . . . . . . 7 . Impact . | . . . . . . . . . . Slashing . | . . . . . . . . . . Piercing . | . . . . . . . . . . Sneak Attacks 7 | . . . . . . . . 7 . Combat Hostiles . | . . . . . . . . . . Follow-up Attacks . | . . . . . . . . . . Damage Inflicted 1846 | 111 . 12 268 . 90 . 432 933 . Guns 1310 | 111 . . 268 . 90 . 432 409 . Cannons 30 | . . . . . . . . 30 . Explosions 494 | . . . . . . . . 494 . Melee . | . . . . . . . . . . Ramming 12 | . . 12 . . . . . . . Kinetic 30 | . . . . . . . . 30 . Thermal 910 | 111 . . 268 . 65 . 159 307 . Explosive 494 | . . . . . . . . 494 . Electromagnetic 400 | . . . . . 25 . 273 102 . Impact . | . . . . . . . . . . Slashing . | . . . . . . . . . . Piercing . | . . . . . . . . . . Highest Corruption 10 | . . . 1 . . . 3 10 10 Average Corruption 5 | . . . 1 . . . 2 10 10 Corruption Purged . | . . . . . . . . . . Corruption Blocked . | . . . . . . . . . . Effects 52 | . . . 3 . . . 17 31 1 Message Errors 20 | . . . 2 . . . 6 12 . Matter Fused 8 | . . . . . . . 4 4 . Heat Flow Errors 8 | . . . . . . . 4 3 1 Energy Discharges 2 | . . . 1 . . . . 1 . Parts Rejected 1 | . . . . . . . . 1 . Data Loss (minor) 7 | . . . . . . . 2 5 . Data Loss (major) 1 | . . . . . . . . 1 . Misfires 2 | . . . . . . . 1 1 . Alerts 1 | . . . . . . . . 1 . Misdirections 2 | . . . . . . . . 2 . Overload Shots . | . . . . . . . . . . Overflow Damage 41 | . . . . . . . . 41 . Projectiles . | . . . . . . . . . . Explosions 41 | . . . . . . . . 41 . Melee . | . . . . . . . . . . Knockbacks 1 | . . . . . . . . 1 . Impact . | . . . . . . . . . . Kinetic 1 | . . . . . . . . 1 . Secondary . | . . . . . . . . . . Self-Inflicted Damage 5 | . . 5 . . . . . . . Shots . | . . . . . . . . . . Rammed 5 | . . 5 . . . . . . . Targets Rammed 5 | . . 5 . . . . . . . Kicked . | . . . . . . . . . . Crushed . | . . . . . . . . . . Highest Temperature 535 | 156 . . 276 128 287 102 415 535 66 Average Temperature 116 | 67 . . 108 60 157 58 101 154 66 Received Heat Transfer 953 | . . 36 267 . . . 395 255 . Effects 10 | . . . 2 . 1 . 3 4 . Shutdowns 2 | . . . . . . . 1 1 . Energy Bleed 1 | . . . . . 1 . . . . Interference 6 | . . . 2 . . . 2 2 . Short Circuit 1 | . . . . . . . . 1 . Siege Activations . | . . . . . . . . . . Martial Activations . | . . . . . . . . . . Shielding Activations . | . . . . . . . . . . Robots Disrupted . | . . . . . . . . . . Combat Hostiles . | . . . . . . . . . . Robots Corrupted . | . . . . . . . . . . Combat Hostiles . | . . . . . . . . . . Parts Fried 1 | . . . . . . . . 1 . Impact Corruptions . | . . . . . . . . . . Robots Melted . | . . . . . . . . . . Combat Hostiles . | . . . . . . . . . . Parts Melted 10 | 1 . . 7 . . . . 2 . Heat Transferred 2415 | 333 . . 632 . 150 . 450 850 . Parts Sabotaged . | . . . . . . . . . . Parts Stolen . | . . . . . . . . . . Parts Stripped . | . . . . . . . . . . Power Chain Reactions . | . . . . . . . . . . Alert | -11 -10 -10 -9 -6 -6 -6 -6 -5 -5 ------- Run | Yrd Mat Sub Scr Fac Was Fac Gar Fac Upp Maximum Alert Level 5 | . . . . . . 1 4 5 . Low Security (%) 39 | 100 100 . . 100 100 67 2 . . Level 1 6 | . . . . . . 32 13 . . Level 2 6 | . . . . . . . 6 17 . Level 3 23 | . . . . . . . 56 16 . Level 4 17 | . . . . . . . 20 40 . Level 5 6 | . . . . . . . . 25 . High Security . | . . . . . . . . . . Max Security . | . . . . . . . . . . Peak Influence 1727 | 10 6 . . . 17 298 1301 1727 . Initial 682 | . 6 . . . . 4 197 682 . Average 637 | 4 . . . . 1 120 884 1283 . Influence Increases 3348 | 30 . . . . 17 355 1144 1802 . Destroy 0b10 Robot/C 1180 | . . . . . . 120 520 540 . Destroy 0b10 Robot/NC 95 | 30 . . . . . 15 5 45 . Destroy Leader 142 | . . . . . . 20 20 102 . Allied During Kill 1118 | . . . . . . 137 517 464 . Successful Hack 31 | . . . . . . 20 . 11 . Disable Machine 135 | . . . . . . 15 . 120 . Destroy Structure 332 | . . . . . 17 13 82 220 . Lose Combat Pursuer 315 | . . . . . . 15 . 300 . Influence Decreases 2332 | 20 10 . . . 10 80 125 1489 598 Entered New Map 1309 | . 4 . . . . 3 85 619 598 Time Decay 473 | 20 6 . . . 10 57 . 380 . Lost Part 210 | . . . . . . . . 210 . Lost Ally 190 | . . . . . . 20 40 130 . Purge Threat 150 | . . . . . . . . 150 . Squads Dispatched 14 | . . . . 1 . 1 . 12 . Investigation 4 | . . . . 1 . 1 . 2 . Extermination 3 | . . . . . . . . 3 . Reinforcement 2 | . . . . . . . . 2 . Assault 2 | . . . . . . . . 2 . Garrison 3 | . . . . . . . . 3 . Intercept . | . . . . . . . . . . Searches Triggered . | . . . . . . . . . . Construction Impeded 1 | . . . . . . . . 1 . Haulers Reinforced . | . . . . . . . . . . Active Scanning Responses . | . . . . . . . . . . Cargo Convoy Interrupts . | . . . . . . . . . . Stealth | -11 -10 -10 -9 -6 -6 -6 -6 -5 -5 --------- Run | Yrd Mat Sub Scr Fac Was Fac Gar Fac Upp Distress Signals 1 | . . . . . . . . 1 . Communications Jammed . | . . . . . . . . . . Distress Signals . | . . . . . . . . . . Times Spotted 103 | . 3 1 22 . 1 3 14 53 6 Peak Tracking Total 18 | . 3 1 4 . 1 2 4 18 6 Tactical Retreats 6 | . . . . . . 1 . 5 . Traps | -11 -10 -10 -9 -6 -6 -6 -6 -5 -5 ------- Run | Yrd Mat Sub Scr Fac Was Fac Gar Fac Upp Traps Triggered 2 | . . . . 1 . . . 1 . Indirectly . | . . . . . . . . . . Trap Hack Attempts . | . . . . . . . . . . Triggered . | . . . . . . . . . . Disarmed . | . . . . . . . . . . Reprogrammed . | . . . . . . . . . . Reused . | . . . . . . . . . . Traps Extracted . | . . . . . . . . . . Installed . | . . . . . . . . . . Triggered . | . . . . . . . . . . Machines | -11 -10 -10 -9 -6 -6 -6 -6 -5 -5 ---------- Run | Yrd Mat Sub Scr Fac Was Fac Gar Fac Upp Machines Disabled 11 | . . . . . . 1 2 8 . Max in Single Turn 3 | . . . . . . . . 3 . Machines Repaired . | . . . . . . . . . . Machines Dismantled . | . . . . . . . . . . Machines Sabotaged . | . . . . . . . . . . Overloaded Fab Kills . | . . . . . . . . . . Hacking | -11 -10 -10 -9 -6 -6 -6 -6 -5 -5 --------- Run | Yrd Mat Sub Scr Fac Was Fac Gar Fac Upp Machines Accessed 20 | . 1 . 5 2 . 3 1 8 . Terminals 9 | . 1 . . . . 2 1 5 . Fabricators 2 | . . . . . . . . 2 . Repair Stations . | . . . . . . . . . . Recycling Units 2 | . . . . 1 . . . 1 . Scanalyzers . | . . . . . . . . . . Garrison Access 2 | . . . . 1 . 1 . . . Total Hacks 60 | . 1 . 29 6 . 6 1 17 . Successful 39 | . 1 . 29 2 . 2 . 5 . Failed 21 | . . . . 4 . 4 1 12 . Catastrophic 5 | . . . . 1 . 1 . 3 . Database Lockouts . | . . . . . . . . . . Manual 8 | . . . . . . 1 . 7 . Terminals 18 | . 1 . . . . 4 1 12 . Fabricators 2 | . . . . . . . . 2 . Repair Stations . | . . . . . . . . . . Recycling Units 5 | . . . . 2 . . . 3 . Scanalyzers . | . . . . . . . . . . Garrison Access 6 | . . . . 4 . 2 . . . Terminal Hacks 34 | . 1 . 29 . . 1 . 3 . Record 28 | . . . 28 . . . . . . Robot Analysis 1 | . . . . . . . . 1 . Open DSF 1 | . . . . . . . . 1 . Branch Access Points 1 | . . . . . . 1 . . . Unreport Threat 1 | . . . . . . . . 1 . Zone Layout 1 | . 1 . . . . . . . . Proto ID Catalog 1 | . . . 1 . . . . . . Fabricator Hacks 1 | . . . . . . . . 1 . Build 1 | . . . . . . . . 1 . Repair Station Hacks . | . . . . . . . . . . Recycling Unit Hacks 2 | . . . . 2 . . . . . Report Inventory 1 | . . . . 1 . . . . . Retrieve Components 1 | . . . . 1 . . . . . Scanalyzer . | . . . . . . . . . . Garrison Access Hacks 1 | . . . . . . 1 . . . Unlock Access 1 | . . . . . . 1 . . . Unauthorized Hacks 1 | . . . . . . . . 1 . Terminals . | . . . . . . . . . . Fabricators . | . . . . . . . . . . Repair Stations . | . . . . . . . . . . Recycling Units 1 | . . . . . . . . 1 . Fedlink 1 | . . . . . . . . 1 . Scanalyzers . | . . . . . . . . . . Garrison Access . | . . . . . . . . . . Data Cores Recovered 2 | . 1 . . . . 1 . . . Used 1 | . . . . . . 1 . . . Hacking Detections 10 | . . . . 2 . 2 . 6 . Full Trace Events 3 | . . . . 1 . 1 . 1 . Feedback Events . | . . . . . . . . . . Feedback Blocked . | . . . . . . . . . . Robot Schematics Acquired . | . . . . . . . . . . Robots Built . | . . . . . . . . . . Authchips . | . . . . . . . . . . Time . | . . . . . . . . . . Total Robot Build Rating . | . . . . . . . . . . Part Schematics Acquired . | . . . . . . . . . . Parts Built 2 | . . . . . . . . 2 . Authchips . | . . . . . . . . . . Time 117 | . . . . . . . . 117 . Total Part Build Rating 14 | . . . . . . . . 14 . Parts Repaired . | . . . . . . . . . . Time . | . . . . . . . . . . Parts Recycled . | . . . . . . . . . . Recycled Matter . | . . . . . . . . . . Retrieved Matter . | . . . . . . . . . . Retrieved Components 1 | . . . . 1 . . . . . Parts Scanalyzed . | . . . . . . . . . . Part Schematics Acquired . | . . . . . . . . . . Parts Damaged . | . . . . . . . . . . Bothacking | -11 -10 -10 -9 -6 -6 -6 -6 -5 -5 ------------ Run | Yrd Mat Sub Scr Fac Was Fac Gar Fac Upp Used RIF Installer 1 | . . . . . . . 1 . . Robots Hacked 4 | . . . . . . . . 4 . Non-combat 4 | . . . . . . . . 4 . Combat . | . . . . . . . . . . Robot Hacks Applied 5 | . . . . . . . . 5 . find_chute 1 | . . . . . . . . 1 . drop_inventory 1 | . . . . . . . . 1 . link_fov 2 | . . . . . . . . 2 . amplify_resonance 1 | . . . . . . . . 1 . Relay Couplers Released 4 | . . . . . . . 4 . . Programmers 4 | . . . . . . . 4 . . Attached 2 | . . . . . . . . 2 . Fabnet Peak Effective % . | . . . . . . . . . . Robots Rewired 2 | . . . . . . . 2 . . Allies Hacked 2 | . . . . . . . 1 1 . Hacks Repelled . | . . . . . . . . . . Allies | -11 -10 -10 -9 -6 -6 -6 -6 -5 -5 -------- Run | Yrd Mat Sub Scr Fac Was Fac Gar Fac Upp Total Allies 22 | . . . . . 20 . 2 . . Largest Group 20 | . . . . . 20 13 13 10 . Highest-Rated Group 713 | . . . . . 713 534 691 480 . Highest-Rated Ally 116 | . . . . . 50 50 116 116 . Total Orders 5 | . . . . . . . 5 . . ROAM 3 | . . . . . . . 3 . . FOLLOW 2 | . . . . . . . 2 . . Ally Attacks 200 | . . . . . 30 25 76 69 . Total Damage 9982 | . . . . . 1837 1113 3897 3135 . Kills 63 | . . . . . 6 9 24 24 . Allies Corrupted 2 | . . . . . . . . 2 . Allies Melted 2 | . . . 2 . . . . . . Intel | -11 -10 -10 -9 -6 -6 -6 -6 -5 -5 ------- Run | Yrd Mat Sub Scr Fac Was Fac Gar Fac Upp Active Infowar (turns) 5273 | 7 208 226 1807 679 248 159 1132 807 . Optics 392 | . . . 60 332 . . . . . Sensors 2640 | . . . . 450 248 159 976 807 . Terrain 78 | 7 71 . . . . . . . . Structural 2110 | . 137 226 1747 . . . . . . Seismic 4560 | 3 208 226 1747 668 248 159 1132 169 . Robot Analysis Total 1 | . . . . . . . . 1 . Derelict Logs Recovered 1 | . . 1 . . . . . . . Drone Launches . | . . . . . . . . . . Drone Recoveries . | . . . . . . . . . . Exploration | -11 -10 -10 -9 -6 -6 -6 -6 -5 -5 ------------- Run | Yrd Mat Sub Scr Fac Was Fac Gar Fac Upp Turns Passed 5444 | 78 208 226 1817 679 248 159 1132 889 8 Spaces Moved 3799 | 46 156 139 1506 321 206 119 683 610 13 Core 85 | 16 . . 10 . . . . 59 . Treads . | . . . . . . . . . . Legs 1901 | . . . 207 321 206 119 683 365 . Wheels 166 | 30 136 . . . . . . . . Hover 133 | . . . . . . . . 133 . Flight 1514 | . 20 139 1289 . . . . 53 13 Fastest Speed 35 | 50 90 117 100 100 100 100 100 35 35 Average Speed 105 | 80 94 117 115 100 100 100 100 95 35 Slowest Speed 300 | 100 205 117 300 100 100 100 100 200 35 Overloaded Moves . | . . . . . . . . . . Propulsion Burnouts . | . . . . . . . . . . Robots Hopped 1 | . . . . . . . . 1 . Potential Cave-ins 6 | . . . . . . . 2 4 . Cave-ins Triggered 1 | . . . . . . . . 1 . Exploration Rate (%) 32 | 4 42 15 81 6 85 4 56 26 4 Regions Visited 9 Branch Regions 3 Pre-discovered Areas 2 | . . 2 . . . . . . . Known Exits Taken 2 | . . . 1 . . 1 . . . Unknown Exits Taken 4 | 1 1 1 . . . . . 1 . Scrap Searched 4 | . . 3 1 . . . . . . Spaces Dug . | . . . . . . . . . . Terrain Destroyed 25 | . . . . . . . . 25 . Melee . | . . . . . . . . . . Projectile . | . . . . . . . . . . AOE 25 | . . . . . . . . 25 . Terrain Rammed . | . . . . . . . . . . Walls Destroyed . | . . . . . . . . . . Machines Disabled . | . . . . . . . . . . Actions | -11 -10 -10 -9 -6 -6 -6 -6 -5 -5 --------- Run | Yrd Mat Sub Scr Fac Was Fac Gar Fac Upp Total 5126 | 70 217 204 1563 664 246 157 1099 890 16 Wait 1126 | . 50 57 31 324 19 38 382 222 3 Move 3785 | 45 155 138 1505 321 205 118 679 606 13 Hop 1 | . . . . . . . . 1 . Pick Up 40 | 10 3 1 3 6 7 . 2 8 . Fast Attach 6 | . 2 . 3 . 1 . . . . Attach 28 | 7 . . 2 5 1 . . 13 . Detach 1 | . . . . . . . . 1 . Swap 12 | . 3 1 2 2 3 . . 1 . Drop 23 | . 4 2 6 1 7 . 2 1 . Fire 84 | 8 . . 11 5 3 1 27 29 . Melee 7 | . . . . . . . . 7 . Ram 5 | . . 5 . . . . . . . Kick . | . . . . . . . . . . Crush . | . . . . . . . . . . Escape Stasis 1 | . . . . . . . . 1 . Rewire 7 | . . . . . . . 7 . . Trap . | . . . . . . . . . . Miscellaneous . | . . . . . . . . . . Route ------- -11/Scrapyard -10/Materials (discovered 5 exits: [*Mat x3] / [*Min] / [*Sub]) -10/Subcaves (discovered 2 exits: [*Mat] / *Scr) -9/Scraptown (discovered 2 exits: *Fac x2) -6/Factory -6/Waste -6/Factory (discovered 3 exits: Low x2 / Gar) -6/Garrison (discovered 2 exits: *Fac x2) -5/Factory -5/Upper Caves History --------- Turn | Location | Event 7 | -11/Scrapyard | Discovered new exit (range 16) 79 | -11/Scrapyard | Entered Materials 80 | -10/Materials | Met a group of wandering Federalists 109 | -10/Materials | Discovered new exit (range 16) 133 | -10/Materials | Discovered new exit (range 14) 232 | -10/Materials | Discovered new exit (range 13) 272 | -10/Materials | Discovered new exit (range 10) 275 | -10/Materials | Discovered new exit (range 10) 287 | -10/Materials | Entered Subcaves 288 | -10/Subcaves | Continued accompanying wandering Federalists (3) 396 | -10/Subcaves | Learned location of Zion (-7) 396 | -10/Subcaves | Met a Zionite searching for "candidates" 458 | -10/Subcaves | Discovered new exit (range 9) 476 | -10/Subcaves | Disturbed a concealed Subdweller 501 | -10/Subcaves | Wandering Federalist uncovered a shortcut to Scraptown 513 | -10/Subcaves | Entered Scraptown 558 | -9/Scraptown | Build established: Scavenger-Mutant 563 | -9/Scraptown | Visited Comm Corps 891 | -9/Scraptown | Visited UFD Registry 893 | -9/Scraptown | Registered with UFD as "Guntube" 934 | -9/Scraptown | Visited SPCMW 959 | -9/Scraptown | Visited TADAMA 1381 | -9/Scraptown | Visited Shadow of the Wyrm 1413 | -9/Scraptown | Visited Fellowship of the Rings 1450 | -9/Scraptown | Visited Assassins FH 1721 | -9/Scraptown | Visited Junk Repository 1761 | -9/Scraptown | Visited A0-MCA Data Center 1768 | -9/Scraptown | Given a C- rating by A0-MCA 1771 | -9/Scraptown | Found A0-MCA's Component Scanner 1822 | -9/Scraptown | Visited Science Guys 1868 | -9/Scraptown | Visited Infowarlord's Domain 1922 | -9/Scraptown | Met Optimus 1922 | -9/Scraptown | Accepted into 0bPrime 2018 | -9/Scraptown | Civil war broke out across Scraptown 2058 | -9/Scraptown | Visited Derelict Rescue Squad 2065 | -9/Scraptown | Lost 4 allies 2077 | -9/Scraptown | Found Scrap Suit 2094 | -9/Scraptown | Visited Junk Repository 2121 | -9/Scraptown | Core integrity fell below 50% 2152 | -9/Scraptown | Visited Scrap Suit Storage 2208 | -9/Scraptown | Identified exit to Factory 2250 | -9/Scraptown | Core integrity fell below 20% 2269 | -9/Scraptown | Lost 10 allies 2291 | -9/Scraptown | Lost 3 parts (1p1u1w) 2330 | -9/Scraptown | Entered Factory 2330 | -6/Factory | Evolved 8 slots: Power x1, Propulsion x2, Utility x5 2638 | -6/Factory | Build established: Scavenger-Scrapper 3009 | -6/Factory | Sucked down chute 3009 | -6/Factory | Entered Waste 3010 | -6/Waste | Joined by Warlord forces that had cleared the area 3220 | -6/Waste | Discovered new exit (range 12) 3229 | -6/Waste | A Compactor rumbled back to life 3229 | -6/Waste | Spotted C-40 Crusher 3237 | -6/Waste | Allies destroyed C-40 Crusher 3245 | -6/Waste | Identified exit to Factory 3257 | -6/Waste | Entered Factory 3257 | -6/Factory | Accompanied by 13 allies 3268 | -6/Factory | Lost 8 allies 3369 | -6/Factory | Identified exit to Lower Caves 3383 | -6/Factory | Identified exit to Garrison 3416 | -6/Factory | Entered Garrison 3416 | -6/Garrison | Accompanied by 12 allies 3432 | -6/Garrison | Spotted B-75 Beast 3448 | -6/Garrison | Allies destroyed B-75 Beast 3462 | -6/Garrison | Rewired B-86 Titan 3482 | -6/Garrison | Rewired B-86 Titan 3518 | -6/Garrison | Triggered checkpoint 3589 | -6/Garrison | P-60 Hacker assimilated allied US-Y0Q(g) 3660 | -6/Garrison | Triggered checkpoint 3680 | -6/Garrison | Triggered checkpoint 3756 | -6/Garrison | Triggered checkpoint 4151 | -6/Garrison | Discovered new exit (range 14) 4163 | -6/Garrison | Identified exit to Factory 4244 | -6/Garrison | Attempted to access garrison exit controls, blocked by remote lockdown 4310 | -6/Garrison | Triggered checkpoint 4316 | -6/Garrison | Triggered checkpoint 4333 | -6/Garrison | Discovered exit to Factory (range 14) 4354 | -6/Garrison | Installed Relay Interface Framework 4548 | -6/Garrison | Entered Factory 4548 | -5/Factory | Accompanied by 10 allies 4548 | -5/Factory | Evolved 2 slots: Utility x1, Weapon x1 4666 | -5/Factory | Loaded intel: 8 recycling unit locations 4706 | -5/Factory | Garrison activated, responded to threat 4717 | -5/Factory | Crushed by falling debris 4718 | -5/Factory | System corruption reached 10% 4748 | -5/Factory | Lost 4 parts (1p2u1w) 4851 | -5/Factory | Fabricated Adv. Datajack (x2) 5148 | -5/Factory | First assault squad dispatched 5163 | -5/Factory | P-70 Sage assimilated allied TP-FSU(d) 5205 | -5/Factory | Lost 4 allies 5220 | -5/Factory | Lost 3 parts (2u1w) 5308 | -5/Factory | Lost 9 parts (2p4n2u1w) 5397 | -5/Factory | Lost 3 parts (2u1w) 5400 | -5/Factory | Core integrity fell below 50% 5415 | -5/Factory | Core integrity fell below 20% 5432 | -5/Factory | Discovered new exit (range 14) 5437 | -5/Factory | Entered Upper Caves 5445 | -5/Upper Caves | Destroyed by S-27 Virus with Autogun Last Messages --------------- a passive way to prevent Complex 0b10 patrols from venturing too deep into the caves. >>Alert(Purge) Purged threat record, alert level lowered. U-05 Engineer lays Concrete. K-01 Serf collects debris. EXIT=FOUND U-05 Engineer lays Concrete. LOCATION=UNKNOWN GOAL=ESCAPE M-22 Extractor extracts Dirty Bomb Trap. G-50 Soldier triggered Fire Trap. Burning plasma bursts from the floor. 7S-ZB8(k) breaks down the debris. 7T-N9V(k) breaks down the debris. 7S-ZB8(k) destroyed. System corrupted: Heat flow error (+103). M-22 Extractor reprogrammed Fire Trap. [Achievement: This Is Interesting...] [Achievement: Just Browsing] Map ----- +----------------------------------------------------+ | ???????????????????????????????????????????????? | | ???????????????????????????????????????????????? | | ???????????????????????????????????????????????? | | ???????????????????????????????????????????????? | | ???????????????????????????????????????????????? | | ???????????????????????????????????????????????? | | ???????????????????????????????????????????????? | | ???????????????????????????????????????????????? | | ???????????????????????????????????????????????? | | ???????????????????????????????????????????????? | | ???????????????????????????????????????????????? | | ???????????????????????????????????????????????? | | ?????????????????????????????##????????????????? | | ???????????????????????????? #????????????????? | | ???????????????????????????# #????????????????? | | ???????????????????####???? #????????????????? | | ?????????????????### ##?? #?????????????????? | | ????????????????## #?? #?????????????????? | | ???????????????## ####% ##????????????????? | | ???????????????# ## ^ #????????????????? | | ???????????????# ## ???????????????????? | | ???????????????# ## #?????????????????????? | | ???????????????## ##????????????????????? | | ????????????????# ##???????????????????? | | ????????????????# #???????????????????? | | ????????????????## @ #???????????????????? | | ?????????????????### #???????????????????? | | ???????????????????# % #??????????????????? | | ???????????????????# * #????????????????? | | ???????????????????### #??????????????? | | ?????????????????????#ss## ##??????????????? | | ?????????????????????#s #?# #???????????????? | | ?????????????????????# s#??# k #??????????????? | | ?????????????????????#s #???# #??????????????? | | ?????????????????????# ???? ##??????????????? | | ????????????????????? ???? #???????????????? | | ????????????????????? ???? #???????????????? | | ???????????????????? ????##???????????????? | | ???????????????????? ##?????????????????????? | | ????????????????????? #??????????????????????? | | ?????????????????????? ???????????????????????? | | ?????????????????????? ???????????????????????? | | ???????????????????????????????????????????????? | | ???????????????????????????????????????????????? | | ???????????????????????????????????????????????? | | ???????????????????????????????????????????????? | | ???????????????????????????????????????????????? | | ???????????????????????????????????????????????? | | ???????????????????????????????????????????????? | | ???????????????????????????????????????????????? | +----------------------------------------------------+ Best States ------------- Heat Dissipation 40 Energy Generation 37 Energy Capacity 550 Matter Stores 300 Matter Capacity 300 Sight Range 21 Robot Scan Range 16 Terrain Scan Range 16 Terrain Scan Density 10 Armor Coverage 225 Propulsion Shielding 66 Evasion (%) 63 Targeting Accuracy 8 Relay Coupler Types 2 Relay Coupler Value 44 Item Schematics ----------------- None Robot Schematics ------------------ None Fabricated ------------ Adv. Datajack | x2 | -5/Factory | Preloaded Repaired ---------- Nothing Alien Tech Used ----------------- None Achievements -------------- Backstab Brute Force Dynamic Key Just Browsing This Is Interesting... We Are Legion Challenges ------------ None Game ------ Seed FieldChainSuperbattery Manual? 0 Play Time 01:12:53 Cumulative 19.9 hours Start 2025.06.02 @ 23:05:25 End 2025.06.04 @ 18:23:15 Sessions 5 Manual Loads 0 Difficulty Rogue Special Mode None Game No. 30 Rogue 30 Adventurer 0 Explorer 0 Win Type - Total 0 Types 0/0/0/0/0/0/0/0/0/0 Lore% 26 Gallery% 25 Achievement% 22 Wizard Run 0 Options --------- Layout 2 ASCII 0 Keyboard 0 Movement Numpad Keybinds 0 Fullscreen 1 Font 24/Proggy Map View 50x44 Zoom Use 0% Tactical HUD 0 Map Filters NONE Filters NONE Steam 1 RUN: 005265ea-3a40-48e9-aed2-65d1f9e98482